[Event "SVK ECo-C Extraliga 2021-22"]
[Site "Slovakia"]
[Date "2022.02.19"]
[Round "3.2"]
[White "Druska Juraj"]
[Black "Nemeth Miklos"]
[Result "1/2-1/2"]
[ECO "E32"]
[WhiteElo "2505"]
[BlackElo "2449"]
[Annotator "RC"]
[PlyCount "69"]
[EventDate "2021.10.21"]
[EventType "team-tourn"]
[EventCountry "SVK"]
[SourceTitle "playchess.com"]
[Source "ChessBase"]
[SourceQuality "1"]
[TimeControl "40/5400+30:1800+30"]

1. d4 {[%emt 0:00:19]} Nf6 {[%emt 0:00:09]} 2. c4 {[%emt 0:00:14]} e6 {[%emt 0:00:03]} 3. Nc3 {[%emt 0:00:20]} Bb4 {[%emt 0:00:07]} 4. Qc2 {[%emt 0:00:30]} d6 {[%emt 0:00:49]} 5. a3 {[%emt 0:25:06]} Bxc3+ {[%emt 0:10:57]} 6. Qxc3 {[%emt 0:00:30]} Nbd7 {[%emt 0:00:30]} 7. g3 {[%emt 0:00:30]} O-O {[%emt 0:00:30]} 8. Bg2 {[%emt 0:00:30]} e5 {[%emt 0:00:30]} 9. Nf3 {[%emt 0:00:30]} e4 {[%emt 0:00:30]} 10. Nd2 {[%emt 0:00:30]} Re8 {[%emt 0:00:30]} 11. Nf1 {[%emt 0:00:30]} d5 {[%emt 0:00:30]} 12. Ne3 {[%emt 0:00:30]} c6 {[%emt 0:00:30]} 13. O-O {[%emt 0:00:30]} Nf8 {[%emt 0:00:30]} 14. b3 {[%emt 0:13:24]} Be6 {[%emt 0:06:12]} 15. a4 {[%emt 0:13:27]} Qd7 {[%emt 0:02:17]} 16. Ba3 {[%emt 0:03:17]} Bh3 {[%emt 0:08:06]} 17. cxd5 {[%emt 0:02:14]} cxd5 {[%emt 0:00:59]} 18. Bxf8 {[%emt 0:00:58]} Rxf8 {[%emt 0:00:21]} 19. Rfc1 {[%emt 0:00:48]} Bxg2 {[%emt 0:01:58]} 20. Kxg2 {[%emt 0:00:50]} Ng4 {[%emt 0:01:31]} 21. Nxg4 {[%emt 0:11:35]} Qxg4 {[%emt 0:00:25]} 22. Qd2 {[%emt 0:00:31]} Rac8 {[%emt 0:05:13]} 23. h3 {[%emt 0:01:23]} Qf5 {[%emt 0:07:49]} 24. Rxc8 {[%emt 0:00:57]} Rxc8 {[%emt 0:00:07]} 25. Rc1 {[%emt 0:00:05]} Rxc1 {[%emt 0:11:15]} 26. Qxc1 {[%emt 0:00:04]} h5 {[%emt 0:00:20]} 27. Qc7 {[%emt 0:05:52]} e3 {[%emt 0:28:47]} 28. f3 {[%emt 0:00:18]} g6 {[%emt 0:04:53]} 29. Qxb7 {[%emt 0:01:32]} Qc2 {[%emt 0:00:25]} 30. Qb5 {[%emt 0:01:02]} Qd2 {[%emt 0:01:25]} 31. Qd3 {[%emt 0:00:40]} a5 {[%emt 0:00:50]} 32. h4 {[%emt 0:03:05]} Kg7 {[%emt 0:01:00]} 33. Kf1 {[%emt 0:04:52]} Qc1+ {[%emt 0:00:07]} 34. Kg2 {[%emt 0:00:05]} Qd2 {[%emt 0:00:31]} 35. Kf1 {[%emt 0:01:25]} 1/2-1/2

[Event "SVK ECo-C Extraliga 2021-22"]
[Site "Slovakia"]
[Date "2022.02.19"]
[Round "3.2"]
[White "Berezjuk, Sergej"]
[Black "Leniart, Arkadiusz"]
[Result "0-1"]
[ECO "C47"]
[WhiteElo "2402"]
[BlackElo "2467"]
[Annotator "ChessBase"]
[PlyCount "78"]
[EventDate "2021.10.21"]
[EventType "team-tourn"]
[EventCountry "SVK"]
[SourceTitle "playchess.com"]
[Source "ChessBase"]
[SourceQuality "1"]
[TimeControl "40/5400+30:1800+30"]

1. e4 {[%emt 0:00:05]} e5 {[%emt 0:00:08]} 2. Nf3 {[%emt 0:00:05]} Nc6 {[%emt 0:00:04]} 3. Nc3 {[%emt 0:00:04]} Nf6 {[%emt 0:00:06]} 4. d4 {[%emt 0:00:04]} exd4 {[%emt 0:00:05]} 5. Nxd4 {[%emt 0:00:01]} Bb4 {[%emt 0:00:17]} 6. Nxc6 {[%emt 0:00:06]} bxc6 {[%emt 0:00:04]} 7. Bd3 {[%emt 0:00:06]} d5 {[%emt 0:00:48]} 8. exd5 {[%emt 0:00:06]} O-O {[%emt 0:00:27]} 9. O-O {[%emt 0:00:33]} cxd5 {[%emt 0:03:18]} 10. h3 {[%emt 0:00:50]} c6 {[%emt 0:02:03]} 11. Qf3 {[%emt 0:00:44]} Rb8 {[%emt 0:02:52]} 12. Ne2 {[%emt 0:06:48]} Bd6 {[%emt 0:03:19]} 13. b3 {[%emt 0:04:38]} Be5 {[%emt 0:05:47]} 14. Bf4 {[%emt 0:08:28]} Re8 {[%emt 0:02:56]} 15. Rad1 {[%emt 0:06:41]} Bd7 {[%emt 0:09:08]} 16. c4 Qa5 {[%emt 0:00:30]} 17. Rd2 Bxf4 {[%emt 0:18:49]} 18. Qxf4 {[%emt 0:19:10]} c5 {[%emt 0:01:06]} 19. g4 {[%emt 0:09:30]} d4 {[%emt 0:04:12]} 20. Ng3 {[%emt 0:04:10]} h6 {[%emt 0:02:14]} 21. Bb1 {[%emt 0:04:01]} Rb6 {[%emt 0:04:11]} 22. Rdd1 {[%emt 0:01:09]} Rbe6 {[%emt 0:03:29]} 23. Nf5 {[%emt 0:04:57]} Ne4 {[%emt 0:02:03]} 24. Bxe4 {[%emt 0:04:53]} Rxe4 {[%emt 0:00:06]} 25. Qf3 {[%emt 0:00:08]} Bxf5 {[%emt 0:01:00]} 26. Qxf5 {[%emt 0:01:00]} R8e5 {[%emt 0:05:26]} 27. Qf3 {[%emt 0:01:44]} h5 {[%emt 0:02:02]} 28. Kg2 {[%emt 0:05:58]} Qb6 {[%emt 0:04:00]} 29. gxh5 {[%emt 0:02:58]} Qe6 {[%emt 0:06:01]} 30. Rd3 {[%emt 0:05:51]} Rf5 {[%emt 0:02:53]} 31. Qg3 {[%emt 0:02:44]} Ref4 {[%emt 0:00:13]} 32. Rdd1 {[%emt 0:01:23]} Qf6 {[%emt 0:00:31]} 33. h4 {[%emt 0:03:38]} Rxh4 {[%emt 0:01:31]} 34. f4 {[%emt 0:01:10]} Rfxh5 {[%emt 0:00:11]} 35. Rde1 {[%emt 0:02:09]} Qc6+ {[%emt 0:01:38]} 36. Rf3 {[%emt 0:01:16]} Rh2+ {[%emt 0:01:04]} 37. Kf1 {[%emt 0:00:43]} Rh1+ {[%emt 0:00:06]} 38. Ke2 {[%emt 0:00:13]} Qe4+ {[%emt 0:00:06]} 39. Kd2 {[%emt 0:00:34]} R5h2+ {[%emt 0:00:10]} 0-1

[Event "SVK ECo-C Extraliga 2021-22"]
[Site "Slovakia"]
[Date "2022.02.19"]
[Round "3.3"]
[White "Kostolansky, Sebastian Lukas"]
[Black "Lewtak, Damian"]
[Result "1-0"]
[ECO "C07"]
[WhiteElo "2395"]
[BlackElo "2386"]
[Annotator "ChessBase"]
[PlyCount "119"]
[EventDate "2021.10.21"]
[EventType "team-tourn"]
[EventCountry "SVK"]
[SourceTitle "playchess.com"]
[Source "ChessBase"]
[SourceQuality "1"]
[TimeControl "40/5400+30:1800+30"]

1. e4 {[%emt 0:00:03]} e6 {[%emt 0:00:17]} 2. d4 {[%emt 0:00:16]} d5 {[%emt 0:00:06]} 3. Nd2 {[%emt 0:00:54]} c5 {[%emt 0:00:09]} 4. exd5 {[%emt 0:00:49]} Qxd5 {[%emt 0:00:39]} 5. dxc5 {[%emt 0:01:30]} Bxc5 {[%emt 0:01:12]} 6. Ngf3 {[%emt 0:00:16]} Nf6 {[%emt 0:01:48]} 7. Bd3 {[%emt 0:02:22]} b6 {[%emt 0:04:01]} 8. Qe2 {[%emt 0:02:10]} Bb7 {[%emt 0:08:55]} 9. O-O {[%emt 0:03:30]} Qh5 {[%emt 0:06:26]} 10. Ne4 {[%emt 0:06:39]} Nxe4 {[%emt 0:00:47]} 11. Bxe4 {[%emt 0:00:05]} Nc6 {[%emt 0:00:49]} 12. Rd1 {[%emt 0:05:46]} Rc8 {[%emt 0:11:53]} 13. Rd5 {[%emt 0:35:34]} e5 {[%emt 0:00:36]} 14. Be3 {[%emt 0:07:27]} Bxe3 {[%emt 0:17:34]} 15. Qxe3 {[%emt 0:00:24]} O-O {[%emt 0:00:40]} 16. Rd7 {[%emt 0:04:40]} Ba8 {[%emt 0:00:55]} 17. c3 {[%emt 0:15:24]} Qg4 {[%emt 0:05:12]} 18. Rd6 {[%emt 0:01:52]} Rfe8 {[%emt 0:05:40]} 19. h3 {[%emt 0:04:35]} Qh5 {[%emt 0:00:51]} 20. Kh2 {[%emt 0:03:41]} f5 {[%emt 0:03:27]} 21. Bd5+ {[%emt 0:00:04]} Kh8 {[%emt 0:00:11]} 22. Rd7 {[%emt 0:02:15]} f4 {[%emt 0:07:44]} 23. Qe4 {[%emt 0:00:31]} Rf8 {[%emt 0:03:07]} 24. Re1 {[%emt 0:00:39]} h6 {[%emt 0:01:23]} 25. Nxe5 {[%emt 0:00:59]} Nxe5 {[%emt 0:01:12]} 26. Qxe5 {[%emt 0:00:07]} Qg6 {[%emt 0:01:22]} 27. Rd6 {[%emt 0:00:37]} Qg5 {[%emt 0:00:02]} 28. Qxg5 {[%emt 0:00:27]} hxg5 {[%emt 0:00:05]} 29. Re5 {[%emt 0:00:47]} Rf6 {[%emt 0:00:23]} 30. Rd7 {[%emt 0:00:13]} Bxd5 {[%emt 0:04:58]} 31. Rdxd5 {[%emt 0:00:05]} Rc7 {[%emt 0:01:02]} 32. Rxg5 {[%emt 0:00:53]} Re6 {[%emt 0:00:10]} 33. Rge5 {[%emt 0:00:18]} Rxe5 {[%emt 0:00:25]} 34. Rxe5 {[%emt 0:00:03]} Rd7 {[%emt 0:00:05]} 35. Re2 {[%emt 0:00:36]} g5 {[%emt 0:00:08]} 36. f3 {[%emt 0:00:51]} Kg7 {[%emt 0:00:11]} 37. Kg1 {[%emt 0:01:05]} Rd1+ {[%emt 0:00:11]} 38. Kf2 {[%emt 0:00:04]} Rc1 {[%emt 0:00:07]} 39. Rd2 {[%emt 0:00:24]} Kf6 {[%emt 0:00:14]} 40. Ke2 {[%emt 0:00:19]} Ke5 {[%emt 0:01:44]} 41. Kd3 {[%emt 0:31:02]} b5 {[%emt 0:30:50]} 42. Re2+ {[%emt 0:00:00]} Kd5 {[%emt 0:00:00]} 43. b3 {[%emt 0:00:00]} Rd1+ {[%emt 0:00:00]} 44. Rd2 {[%emt 0:00:00]} Re1 {[%emt 0:00:00]} 45. Kc2+ {[%emt 0:00:00]} Kc5 {[%emt 0:00:00]} 46. b4+ {[%emt 0:00:00]} Kc6 {[%emt 0:00:00]} 47. Kd3 {[%emt 0:00:00]} Re3+ {[%emt 0:00:00]} 48. Kd4 {[%emt 0:00:00]} Re7 {[%emt 0:00:00]} 49. Rc2 {[%emt 0:00:00]} Kb6 {[%emt 0:00:00]} 50. c4 {[%emt 0:00:00]} Rd7+ {[%emt 0:00:00]} 51. Kc3 {[%emt 0:00:00]} Rd1 {[%emt 0:00:00]} 52. cxb5 {[%emt 0:00:00]} Kxb5 {[%emt 0:00:00]} 53. a4+ {[%emt 0:00:00]} Kb6 {[%emt 0:00:00]} 54. Kc4 {[%emt 0:00:41]} a6 {[%emt 0:00:00]} 55. a5+ {[%emt 0:00:38]} Kc6 {[%emt 0:00:00]} 56. b5+ {[%emt 0:00:10]} axb5+ {[%emt 0:00:00]} 57. Kb4+ {[%emt 0:00:05]} Kd5 {[%emt 0:00:00]} 58. Rc5+ {[%emt 0:01:14]} Kd4 {[%emt 0:00:00]} 59. Kxb5 {[%emt 0:00:09]} Rb1+ {[%emt 0:00:00]} 60. Kc6 {[%emt 0:00:07]} 1-0

[Event "SVK ECo-C Extraliga 2021-22"]
[Site "Slovakia"]
[Date "2022.02.19"]
[Round "3.3"]
[White "Vymazal, Bronislav"]
[Black "Mrva, Martin"]
[Result "1-0"]
[ECO "A05"]
[WhiteElo "2385"]
[BlackElo "2383"]
[Annotator "ChessBase"]
[PlyCount "79"]
[EventDate "2021.10.21"]
[EventType "team-tourn"]
[EventCountry "SVK"]
[SourceTitle "playchess.com"]
[Source "ChessBase"]
[SourceQuality "1"]
[TimeControl "40/5400+30:1800+30"]

1. Nf3 {[%emt 0:00:03]} Nf6 {[%emt 0:00:06]} 2. g3 {[%emt 0:00:04]} c5 {[%emt 0:01:12]} 3. Bg2 {[%emt 0:00:11]} Nc6 {[%emt 0:01:45]} 4. c4 {[%emt 0:10:00]} d6 {[%emt 0:02:36]} 5. Nc3 {[%emt 0:01:19]} Bd7 {[%emt 0:02:00]} 6. O-O {[%emt 0:00:33]} a6 {[%emt 0:03:07]} 7. d4 {[%emt 0:15:10]} cxd4 {[%emt 0:00:34]} 8. Nxd4 {[%emt 0:00:10]} Rc8 {[%emt 0:00:56]} 9. b3 {[%emt 0:09:50]} e6 {[%emt 0:07:39]} 10. Nc2 {[%emt 0:02:13]} Be7 {[%emt 0:05:04]} 11. Qd2 {[%emt 0:00:14]} O-O {[%emt 0:01:00]} 12. Rd1 {[%emt 0:00:17]} Qa5 {[%emt 0:10:04]} 13. Ba3 {[%emt 0:14:39]} Qe5 {[%emt 0:25:02]} 14. f4 {[%emt 0:09:42]} Qh5 {[%emt 0:01:01]} 15. Bxd6 {[%emt 0:08:40]} Bxd6 {[%emt 0:00:18]} 16. Qxd6 {[%emt 0:00:05]} Rfd8 {[%emt 0:01:16]} 17. Ne3 {[%emt 0:02:03]} Be8 {[%emt 0:01:57]} 18. Qa3 {[%emt 0:01:13]} b5 {[%emt 0:02:13]} 19. Bf3 {[%emt 0:01:16]} b4 {[%emt 0:09:09]} 20. Bxh5 {[%emt 0:00:46]} bxa3 {[%emt 0:00:05]} 21. Bf3 {[%emt 0:00:15]} Nb4 {[%emt 0:00:17]} 22. Kf2 {[%emt 0:06:16]} Kf8 {[%emt 0:00:37]} 23. Ke1 {[%emt 0:01:16]} Ke7 {[%emt 0:01:21]} 24. Rxd8 {[%emt 0:00:34]} Rxd8 {[%emt 0:00:18]} 25. Nb1 {[%emt 0:00:22]} Bc6 {[%emt 0:09:51]} 26. Bxc6 Nxc6 {[%emt 0:00:03]} 27. Nxa3 {[%emt 0:03:29]} Ne4 {[%emt 0:00:25]} 28. Nac2 {[%emt 0:00:26]} Rb8 {[%emt 0:00:20]} 29. Nd1 {[%emt 0:01:53]} a5 {[%emt 0:02:07]} 30. Nf2 {[%emt 0:00:32]} Nxf2 {[%emt 0:00:30]} 31. Kxf2 {[%emt 0:00:05]} a4 {[%emt 0:00:12]} 32. Rb1 {[%emt 0:02:34]} Na5 {[%emt 0:03:46]} 33. Nd4 {[%emt 0:00:52]} Rb4 {[%emt 0:03:11]} 34. e3 {[%emt 0:05:01]} f6 {[%emt 0:01:01]} 35. Rd1 {[%emt 0:01:32]} axb3 {[%emt 0:00:27]} 36. axb3 {[%emt 0:00:13]} g6 {[%emt 0:01:41]} 37. Ra1 {[%emt 0:00:30]} e5 {[%emt 0:01:14]} 38. fxe5 {[%emt 0:00:41]} fxe5 {[%emt 0:00:04]} 39. Rxa5 {[%emt 0:00:15]} exd4 {[%emt 0:00:06]} 40. Rb5 {[%emt 0:00:28]} 1-0

[Event "SVK ECo-C Extraliga 2021-22"]
[Site "Slovakia"]
[Date "2022.02.19"]
[Round "3.3"]
[White "Mikrut, Dariusz"]
[Black "Plachetka, Jan"]
[Result "1/2-1/2"]
[ECO "D85"]
[WhiteElo "2377"]
[BlackElo "2308"]
[Annotator "ChessBase"]
[PlyCount "122"]
[EventDate "2021.10.21"]
[EventType "team-tourn"]
[EventCountry "SVK"]
[SourceTitle "playchess.com"]
[Source "ChessBase"]
[SourceQuality "1"]
[TimeControl "40/5400+30:1800+30"]

1. d4 {[%emt 0:00:28]} Nf6 {[%emt 0:00:14]} 2. Nf3 {[%emt 0:00:15]} g6 {[%emt 0:00:48]} 3. c4 {[%emt 0:01:08]} Bg7 {[%emt 0:00:08]} 4. Nc3 {[%emt 0:00:14]} d5 {[%emt 0:00:22]} 5. cxd5 {[%emt 0:01:53]} Nxd5 {[%emt 0:00:05]} 6. e4 {[%emt 0:01:10]} Nxc3 {[%emt 0:00:09]} 7. bxc3 {[%emt 0:00:06]} c5 {[%emt 0:00:33]} 8. h3 {[%emt 0:00:58]} Nc6 {[%emt 0:03:54]} 9. Be3 {[%emt 0:01:22]} Qa5 {[%emt 0:01:37]} 10. Bd2 {[%emt 0:00:45]} O-O {[%emt 0:00:30]} 11. Bc4 {[%emt 0:00:30]} b5 {[%emt 0:00:30]} 12. Bd5 {[%emt 0:00:30]} Bb7 {[%emt 0:00:30]} 13. O-O {[%emt 0:00:30]} e6 {[%emt 0:00:30]} 14. Bb3 {[%emt 0:00:30]} Qc7 {[%emt 0:00:30]} 15. d5 {[%emt 0:00:30]} exd5 {[%emt 0:00:30]} 16. Bxd5 {[%emt 0:00:30]} Na5 {[%emt 0:00:30]} 17. Bxb7 {[%emt 0:00:30]} Qxb7 {[%emt 0:00:30]} 18. Qc2 {[%emt 0:00:30]} Nc4 {[%emt 0:00:30]} 19. Bf4 {[%emt 0:00:30]} Rfe8 {[%emt 0:00:30]} 20. Rfe1 {[%emt 0:00:30]} b4 {[%emt 0:00:30]} 21. e5 {[%emt 0:00:30]} Na3 {[%emt 0:00:30]} 22. Qa4 {[%emt 0:00:30]} Qb5 {[%emt 0:00:30]} 23. Qxb5 {[%emt 0:00:30]} Nxb5 {[%emt 0:00:30]} 24. cxb4 {[%emt 0:00:30]} cxb4 {[%emt 0:00:30]} 25. Rac1 {[%emt 0:00:30]} Rac8 {[%emt 0:00:30]} 26. Ra1 {[%emt 1:05:44]} Ra8 {[%emt 0:53:17]} 27. Rac1 {[%emt 0:03:23]} Rac8 {[%emt 0:00:31]} 28. Bd2 {[%emt 0:04:43]} a5 {[%emt 0:04:41]} 29. Kf1 {[%emt 0:03:17]} Na3 {[%emt 0:07:30]} 30. Re4 {[%emt 0:00:05]} Rxc1+ {[%emt 0:00:34]} 31. Bxc1 {[%emt 0:00:26]} Nb5 {[%emt 0:02:39]} 32. Rc4 {[%emt 0:03:35]} Bf8 {[%emt 0:02:23]} 33. Bd2 {[%emt 0:06:16]} Rb8 {[%emt 0:09:18]} 34. Ng5 {[%emt 0:01:17]} Na3 {[%emt 0:03:12]} 35. Rc7 {[%emt 0:00:47]} Bh6 {[%emt 0:00:43]} 36. e6 {[%emt 0:00:30]} fxe6 {[%emt 0:01:24]} 37. Nxh7 {[%emt 0:00:29]} Bg7 {[%emt 0:03:02]} 38. Ng5 {[%emt 0:00:20]} Nb5 {[%emt 0:00:51]} 39. Rc5 {[%emt 0:00:10]} Bf8 {[%emt 0:01:26]} 40. Rc4 Na3 41. Rc6 {[%emt 0:31:12]} Bh6 {[%emt 0:31:30]} 42. Rxe6 {[%emt 0:00:00]} Bxg5 43. Rxg6+ {[%emt 0:00:01]} Kf7 {[%emt 0:00:23]} 44. Rxg5 {[%emt 0:03:46]} a4 {[%emt 0:00:00]} 45. Bc1 {[%emt 0:00:00]} Nb1 {[%emt 0:00:00]} 46. Rc5 Nc3 47. a3 {[%emt 0:00:00]} Rd8 {[%emt 0:00:00]} 48. Re5 {[%emt 0:00:00]} b3 {[%emt 0:00:00]} 49. Re1 {[%emt 0:00:00]} Nd1 {[%emt 0:00:00]} 50. Ke2 {[%emt 0:00:00]} b2 {[%emt 0:00:00]} 51. Bxb2 {[%emt 0:00:00]} Nxb2 {[%emt 0:00:00]} 52. Rb1 {[%emt 0:00:00]} Nc4 {[%emt 0:00:00]} 53. Rb4 {[%emt 0:00:00]} Nxa3 {[%emt 0:00:00]} 54. Rxa4 {[%emt 0:00:00]} Nb5 {[%emt 0:00:00]} 55. Rf4+ Kg6 56. g3 {[%emt 0:00:00]} Nd4+ {[%emt 0:00:06]} 57. Ke3 {[%emt 0:00:00]} Ne6 {[%emt 0:00:32]} 58. Rc4 {[%emt 0:00:00]} Ng5 {[%emt 0:00:51]} 59. Rc6+ {[%emt 0:00:00]} Kg7 {[%emt 0:00:29]} 60. Rc7+ {[%emt 0:00:00]} Kg6 {[%emt 0:00:10]} 61. Rc6+ {[%emt 0:00:00]} Kg7 {[%emt 0:00:05]} 1/2-1/2

[Event "SVK ECo-C Extraliga 2021-22"]
[Site "Slovakia"]
[Date "2022.02.19"]
[Round "3.4"]
[White "Jurcik Martin"]
[Black "Borhy Marcell"]
[Result "1/2-1/2"]
[ECO "A13"]
[WhiteElo "2390"]
[BlackElo "2381"]
[Annotator "ChessBase"]
[PlyCount "43"]
[EventDate "2021.10.21"]
[EventType "team-tourn"]
[EventCountry "SVK"]
[SourceTitle "playchess.com"]
[Source "ChessBase"]
[SourceQuality "1"]
[TimeControl "40/5400+30:1800+30"]

1. c4 {[%emt 0:00:11]} Nf6 {[%emt 0:00:43]} 2. Nf3 {[%emt 0:01:03]} e6 {[%emt 0:00:09]} 3. e3 {[%emt 0:33:03]} d5 {[%emt 0:12:54]} 4. b3 {[%emt 0:00:30]} Be7 {[%emt 0:00:30]} 5. Bb2 {[%emt 0:00:30]} O-O {[%emt 0:00:30]} 6. Be2 {[%emt 0:00:30]} b6 {[%emt 0:00:30]} 7. O-O {[%emt 0:00:30]} Bb7 {[%emt 0:00:30]} 8. d4 {[%emt 0:00:30]} dxc4 {[%emt 0:00:30]} 9. Bxc4 {[%emt 0:00:30]} Nbd7 {[%emt 0:00:30]} 10. Qe2 {[%emt 0:00:30]} c5 {[%emt 0:00:30]} 11. Nbd2 {[%emt 0:00:30]} cxd4 {[%emt 0:00:30]} 12. Nxd4 {[%emt 0:00:30]} Nc5 {[%emt 0:00:30]} 13. Rfd1 {[%emt 0:00:30]} a6 {[%emt 0:01:07]} 14. a4 {[%emt 0:00:57]} Qb8 {[%emt 0:00:21]} 15. b4 {[%emt 0:05:29]} Nxa4 {[%emt 0:06:31]} 16. Rxa4 {[%emt 0:01:46]} b5 {[%emt 0:00:53]} 17. Nxb5 {[%emt 0:21:00]} axb5 {[%emt 0:00:24]} 18. Rxa8 {[%emt 0:00:29]} Bxa8 {[%emt 0:02:02]} 19. Bxb5 {[%emt 0:01:01]} Rd8 {[%emt 0:10:21]} 20. Bd4 {[%emt 0:07:55]} Qb7 {[%emt 0:03:52]} 21. Nf3 {[%emt 0:01:54]} Bxb4 {[%emt 0:05:04]} 22. Rb1 {[%emt 0:04:14]} 1/2-1/2

[Event "SVK ECo-C Extraliga 2021-22"]
[Site "Slovakia"]
[Date "2022.02.19"]
[Round "3.4"]
[White "Jablonicky, Martin"]
[Black "Manik, Mikulas"]
[Result "0-1"]
[ECO "E71"]
[WhiteElo "2317"]
[BlackElo "2349"]
[Annotator "ChessBase"]
[PlyCount "58"]
[EventDate "2021.10.21"]
[EventType "team-tourn"]
[EventCountry "SVK"]
[SourceTitle "playchess.com"]
[Source "ChessBase"]
[SourceQuality "1"]
[TimeControl "40/5400+30:1800+30"]

1. d4 {[%emt 0:00:02]} Nf6 {[%emt 0:00:09]} 2. c4 {[%emt 0:00:05]} g6 {[%emt 0:00:29]} 3. Nc3 {[%emt 0:00:06]} Bg7 {[%emt 0:00:03]} 4. e4 {[%emt 0:00:04]} d6 {[%emt 0:00:04]} 5. h3 {[%emt 0:00:05]} O-O {[%emt 0:00:06]} 6. Be3 {[%emt 0:00:04]} c6 {[%emt 0:01:06]} 7. Nge2 {[%emt 0:16:46]} Na6 {[%emt 0:09:04]} 8. g4 {[%emt 0:00:10]} e5 {[%emt 0:03:32]} 9. d5 {[%emt 0:00:10]} cxd5 {[%emt 0:06:34]} 10. cxd5 {[%emt 0:03:42]} Qa5 {[%emt 0:01:04]} 11. Qd2 {[%emt 0:15:37]} Nc5 {[%emt 0:00:57]} 12. Rb1 {[%emt 0:00:08]} Nfxe4 {[%emt 0:04:26]} 13. Nxe4 {[%emt 0:00:19]} Nd3+ {[%emt 0:00:01]} 14. Kd1 {[%emt 0:00:39]} Qa4+ {[%emt 0:00:04]} 15. Qc2 {[%emt 0:20:52]} Qxe4 {[%emt 0:00:30]} 16. Ng3 Qf3+ {[%emt 0:00:30]} 17. Qe2 {[%emt 0:01:00]} Qxe2+ {[%emt 0:00:30]} 18. Bxe2 {[%emt 0:00:30]} Nb4 {[%emt 0:00:30]} 19. Bf1 {[%emt 0:00:30]} Nd3 20. Be2 Nb4 {[%emt 0:13:16]} 21. Bc4 {[%emt 0:02:50]} b5 {[%emt 0:00:11]} 22. Bxb5 {[%emt 0:01:51]} Nxd5 {[%emt 0:00:27]} 23. Bc6 {[%emt 0:00:53]} Nxe3+ {[%emt 0:00:15]} 24. fxe3 {[%emt 0:00:04]} Rb8 {[%emt 0:00:14]} 25. Kd2 {[%emt 0:00:56]} Be6 {[%emt 0:09:30]} 26. b3 {[%emt 0:00:04]} d5 {[%emt 0:01:55]} 27. Ke2 {[%emt 0:00:08]} Rfc8 {[%emt 0:06:47]} 28. Rhc1 {[%emt 0:01:53]} Bh6 {[%emt 0:17:25]} 29. Rc5 {[%emt 0:06:42]} Bf8 {[%emt 0:01:03]} 0-1

[Event "SVK ECo-C Extraliga 2021-22"]
[Site "Slovakia"]
[Date "2022.02.19"]
[Round "3.4"]
[White "Krak, Tomas"]
[Black "Likavsky, Tomas"]
[Result "0-1"]
[ECO "B53"]
[WhiteElo "2306"]
[BlackElo "2415"]
[Annotator "ChessBase"]
[PlyCount "71"]
[EventDate "2021.10.21"]
[EventType "team-tourn"]
[EventCountry "SVK"]
[SourceTitle "playchess.com"]
[Source "ChessBase"]
[SourceQuality "1"]
[TimeControl "40/5400+30:1800+30"]

1. e4 {[%emt 0:00:08]} c5 {[%emt 0:03:14]} 2. Nf3 {[%emt 0:00:15]} d6 {[%emt 0:00:07]} 3. d4 {[%emt 0:04:28]} cxd4 {[%emt 0:00:08]} 4. Qxd4 {[%emt 0:02:51]} Nc6 {[%emt 0:00:32]} 5. Bb5 {[%emt 0:00:12]} Bd7 {[%emt 0:00:16]} 6. Bxc6 {[%emt 0:00:07]} Bxc6 {[%emt 0:00:04]} 7. Nc3 {[%emt 0:00:13]} e5 {[%emt 0:00:41]} 8. Qd3 {[%emt 0:00:17]} h6 {[%emt 0:01:10]} 9. Be3 {[%emt 0:01:28]} Nf6 {[%emt 0:00:26]} 10. h3 {[%emt 0:00:38]} b5 {[%emt 0:05:51]} 11. O-O-O {[%emt 0:22:03]} Qd7 {[%emt 0:25:12]} 12. Nd2 {[%emt 0:13:06]} b4 {[%emt 0:14:00]} 13. Nd5 {[%emt 0:01:14]} Nxd5 {[%emt 0:00:45]} 14. exd5 {[%emt 0:00:14]} Bb5 {[%emt 0:00:05]} 15. Qe4 {[%emt 0:03:33]} a5 {[%emt 0:05:54]} 16. f4 {[%emt 0:17:18]} f5 {[%emt 0:01:57]} 17. Qf3 {[%emt 0:00:20]} Rc8 {[%emt 0:04:51]} 18. Kb1 {[%emt 0:03:52]} a4 {[%emt 0:03:09]} 19. fxe5 {[%emt 0:06:54]} dxe5 {[%emt 0:00:06]} 20. Rhe1 {[%emt 0:00:40]} Bd6 {[%emt 0:07:07]} 21. g4 {[%emt 0:06:16]} O-O {[%emt 0:11:24]} 22. gxf5 {[%emt 0:00:05]} Rxf5 {[%emt 0:04:11]} 23. Qg2 {[%emt 0:00:48]} Bf8 {[%emt 0:02:35]} 24. Ne4 {[%emt 0:03:59]} b3 {[%emt 0:00:29]} 25. axb3 {[%emt 0:01:42]} axb3 {[%emt 0:00:04]} 26. cxb3 {[%emt 0:00:21]} Kh8 {[%emt 0:00:55]} 27. Rg1 {[%emt 0:01:53]} Rh5 {[%emt 0:00:42]} 28. Qg6 {[%emt 0:03:07]} Qe8 {[%emt 0:01:47]} 29. Qg3 {[%emt 0:03:12]} Bd7 {[%emt 0:01:11]} 30. Rdf1 {[%emt 0:00:44]} Rxh3 {[%emt 0:00:36]} 31. Qf2 {[%emt 0:02:05]} Bb5 {[%emt 0:00:35]} 32. Rd1 {[%emt 0:00:48]} Qh5 {[%emt 0:00:36]} 33. Nf6 {[%emt 0:01:21]} Qf3 {[%emt 0:00:20]} 34. Qxf3 {[%emt 0:00:38]} Rxf3 {[%emt 0:00:04]} 35. Ng4 {[%emt 0:00:10]} Bd7 {[%emt 0:00:20]} 36. Ba7 0-1

[Event "SVK ECo-C Extraliga 2021-22"]
[Site "Slovakia"]
[Date "2022.02.19"]
[Round "3.5"]
[White "Bures, Jaroslav"]
[Black "Veres, Andrej"]
[Result "1-0"]
[ECO "E49"]
[WhiteElo "2411"]
[BlackElo "2185"]
[Annotator "ChessBase"]
[PlyCount "75"]
[EventDate "2021.10.21"]
[EventType "team-tourn"]
[EventCountry "SVK"]
[SourceTitle "playchess.com"]
[Source "ChessBase"]
[SourceQuality "1"]
[TimeControl "40/5400+30:1800+30"]

1. d4 Nf6 2. c4 e6 3. Nc3 Bb4 4. e3 O-O 5. Bd3 d5 6. a3 Bxc3+ 7. bxc3 c5 8. cxd5 exd5 9. Ne2 Re8 10. f3 {[%emt 0:04:29]} Nc6 {[%emt 0:21:30]} 11. O-O {[%emt 0:00:14]} Na5 {[%emt 0:22:24]} 12. Ng3 {[%emt 0:06:14]} Qc7 {[%emt 0:03:24]} 13. Rb1 {[%emt 0:07:41]} Be6 {[%emt 0:08:24]} 14. e4 {[%emt 0:01:18]} dxe4 {[%emt 0:06:41]} 15. fxe4 {[%emt 0:00:19]} Bg4 {[%emt 0:00:29]} 16. Qd2 {[%emt 0:04:46]} Rad8 {[%emt 0:07:07]} 17. e5 {[%emt 0:09:48]} Nh5 {[%emt 0:03:54]} 18. Ne4 {[%emt 0:09:10]} cxd4 {[%emt 0:02:54]} 19. Qg5 {[%emt 0:00:28]} Rxe5 {[%emt 0:11:58]} 20. Qxg4 {[%emt 0:00:51]} dxc3 {[%emt 0:04:22]} 21. Bc2 {[%emt 0:05:39]} g6 {[%emt 0:07:03]} 22. Bg5 {[%emt 0:09:07]} Rde8 {[%emt 0:00:41]} 23. Nf6+ {[%emt 0:04:31]} Nxf6 {[%emt 0:00:27]} 24. Bxf6 {[%emt 0:00:03]} Rh5 {[%emt 0:00:33]} 25. Rf4 {[%emt 0:05:36]} b5 {[%emt 0:00:34]} 26. h4 {[%emt 0:14:47]} Nc4 {[%emt 0:00:32]} 27. Rxc4 {[%emt 0:00:26]} bxc4 {[%emt 0:00:14]} 28. Bxc3 {[%emt 0:02:22]} Qc5+ {[%emt 0:00:43]} 29. Bd4 {[%emt 0:00:03]} Qe7 {[%emt 0:00:28]} 30. Bf2 {[%emt 0:01:46]} Qxa3 {[%emt 0:00:14]} 31. Qxc4 {[%emt 0:00:16]} Rhe5 {[%emt 0:00:44]} 32. Rf1 {[%emt 0:03:56]} Qe7 {[%emt 0:00:37]} 33. Bb3 {[%emt 0:01:06]} Re4 {[%emt 0:00:26]} 34. Qc1 {[%emt 0:00:38]} a5 {[%emt 0:00:34]} 35. Bc5 {[%emt 0:01:16]} Re1 {[%emt 0:00:26]} 36. Bxe7 {[%emt 0:00:36]} Rxc1 {[%emt 0:00:10]} 37. Bxf7+ {[%emt 0:00:21]} Kg7 {[%emt 0:00:03]} 38. Bxe8 {[%emt 0:00:17]} 1-0